fUST/lending_fUST_20240410
["ID","MTS","AMOUNT","RATE_DAILY","PERIOD"]
[322041298,1712713855614,-1828.4261,0.00025,2]
[322041299,1712713855623,-954.71,0.00025205,2]
[322041300,1712713855632,-526.23826031,0.00025205,2]
[322041301,1712713855641,-598.39,0.00025205,2]
[322041302,1712713855651,-531.22,0.00025205,2]
[322041303,1712713855659,-1511.38,0.00025205,2]
[322041304,1712713855669,-500.0,0.00025205,2]
[322041305,1712713855679,-500.0,0.00025205,2]
[322041306,1712713855688,-1542.66,0.00025205,2]
[322041307,1712713855697,-736.34,0.00025205,2]
[322041308,1712713855706,-655.56,0.00025205,2]
[322041309,1712713855715,-507.82,0.00025205,2]
[322041310,1712713855724,-522.4,0.00025205,2]
[322041311,1712713855733,-500.0,0.00025205,2]
[322041312,1712713855743,-500.0,0.00025205,2]
[322041313,1712713855752,-500.0,0.00025205,2]
[322041314,1712713855761,-640.77,0.00025205,2]
[322041315,1712713855772,-500.0,0.00025205,2]
[322041316,1712713855782,-500.0,0.00025205,2]
[322041317,1712713855791,-674.79,0.00025205,2]
[322041318,1712713855800,-917.47,0.00025205,2]
[322041319,1712713855809,-510.85,0.00025205,2]
[322041320,1712713855819,-751.55,0.00025205,2]
[322041321,1712713855828,-732.37,0.00025205,2]
[322041322,1712713855838,-2365.23,0.00025205,2]
[322041323,1712713855848,-500.0,0.00025205,2]
[322041324,1712713855857,-1178.74,0.00025205,2]
[322041325,1712713855867,-500.0,0.00025205,2]
[322041326,1712713855877,-734.7,0.00025205,2]
[322041327,1712713855887,-1169.42,0.00025205,2]
[322041328,1712713855897,-1153.08,0.00025205,2]
[322041329,1712713855908,-626.23,0.00025205,2]
[322041330,1712713855919,-2678.85,0.00025205,2]
[322041331,1712713855927,-500.0,0.00025205,2]
[322041332,1712713855939,-1262.83,0.00025205,2]
[322041333,1712713855950,-876.86,0.00025205,2]
[322041334,1712713855960,-1007.79,0.00025205,2]
[322041335,1712713855969,-554.0,0.00025205,2]
[322041336,1712713855978,-740.16,0.00025205,2]
[322041337,1712713855987,-4154.44,0.00025205,2]
[322041338,1712713855996,-694.97,0.00025205,2]
[322041339,1712713856006,-2058.39,0.00025205,2]
[322041340,1712713856016,-500.0,0.00025205,2]
[322041341,1712713856025,-942.66,0.00025205,2]
[322041342,1712713856034,-500.0,0.00025205,2]
[322041343,1712713856043,-500.0,0.00025205,2]
[322041344,1712713856053,-500.0,0.00025205,2]
[322041346,1712713856062,-1489.96,0.00025205,2]
[322041347,1712713856071,-7963.74,0.00025205,2]
[322041348,1712713856080,-2660.44,0.00025205,2]
[322041349,1712713856089,-500.0,0.00025205,2]
[322041350,1712713856098,-1867.66,0.00025205,2]
[322041351,1712713856107,-2438.57,0.00025205,2]
[322041352,1712713856116,-23163.16,0.00025205,2]
[322041353,1712713856200,-4211.3,0.00025205,2]
[322041354,1712713856209,-1171.79,0.00025205,2]
[322041355,1712713856218,-895.69,0.00025205,2]
[322041356,1712713856227,-587.33,0.00025205,2]
[322041357,1712713856236,-500.0,0.00025205,2]
[322041358,1712713856245,-551.17,0.00025205,2]
[322041359,1712713856254,-727.01,0.00025205,2]
[322041360,1712713856263,-500.0,0.00025205,2]
[322041361,1712713856272,-500.0,0.00025205,2]
[322041362,1712713856282,-245.47190615,0.00025205,2]
[322041363,1712713856290,-500.0,0.00025205,2]
[322041364,1712713856299,-500.0,0.00025205,2]
[322041365,1712713856308,-4076.7,0.00025205,2]
[322041366,1712713856317,-1346.46,0.00025205,2]
[322041367,1712713856326,-25242.55,0.00025205,2]
[322041368,1712713856335,-3946.65,0.00025205,2]
[322041369,1712713856344,-2817.03,0.00025205,2]
[322041370,1712713856353,-500.0,0.00025205,2]
[322041371,1712713856362,-5126.75,0.00025205,2]
[322041372,1712713856371,-2126.98,0.00025205,2]
[322041373,1712713856379,-500.0,0.00025205,2]
[322041374,1712713856388,-1412.53,0.00025205,2]
[322041375,1712713856399,-517.78,0.00025205,2]
[322041376,1712713856411,-896.71,0.00025205,2]
[322041377,1712713856421,-1779.15,0.00025205,2]
[322041378,1712713856430,-500.0,0.00025205,2]
[322041379,1712713856438,-3102.45,0.00025205,2]
[322041380,1712713856447,-500.0,0.00025205,2]
[322041381,1712713856456,-8740.37,0.00025205,2]
[322041382,1712713856465,-4520.79,0.00025205,2]
[322041383,1712713856474,-516.83,0.00025205,2]
[322041384,1712713856484,-1709.21,0.00025205,2]
[322041385,1712713856492,-2939.98,0.00025205,2]
[322041386,1712713856501,-8418.71,0.00025205,2]
[322041387,1712713856510,-3816.3,0.00025205,2]
[322041388,1712713856520,-587.0,0.00025268,2]
[322041389,1712713856529,-364.0,0.00025373,2]
[322041390,1712713856538,-243.93954417,0.00025477,2]
[322041391,1712713856547,-201.09549684,0.00025477,2]
[322041392,1712713856557,-303.26282161,0.00025478,2]
[322041393,1712713856566,-954.71,0.00025479,2]
[322041394,1712713856575,-598.39,0.00025479,2]
[322041395,1712713856584,-531.22,0.00025479,2]
[322041396,1712713856594,-1511.38,0.00025479,2]
[322041397,1712713856603,-500.0,0.00025479,2]
[322041398,1712713856613,-608.92419642,0.00025479,2]
[322041399,1712713856621,-1542.66,0.00025479,2]
[322041400,1712713856630,-736.34,0.00025479,2]
[322041401,1712713856639,-655.56,0.00025479,2]
[322041402,1712713856648,-507.82,0.00025479,2]
[322041403,1712713856658,-522.4,0.00025479,2]
[322041404,1712713856668,-500.0,0.00025479,2]
[322041405,1712713856678,-500.0,0.00025479,2]
[322041406,1712713856687,-500.0,0.00025479,2]
[322041407,1712713856698,-640.77,0.00025479,2]
[322041408,1712713856706,-500.0,0.00025479,2]
[322041409,1712713856717,-204.29831653,0.00025479,2]
[322041410,1712713856726,-674.79,0.00025479,2]
[322041411,1712713856735,-917.47,0.00025479,2]
[322041412,1712713856744,-510.85,0.00025479,2]
[322041413,1712713856754,-751.55,0.00025479,2]
[322041414,1712713856763,-732.37,0.00025479,2]
[322041415,1712713856773,-2365.23,0.00025479,2]
[322041416,1712713856782,-500.0,0.00025479,2]
[322041417,1712713856792,-1178.74,0.00025479,2]
[322041418,1712713856801,-500.0,0.00025479,2]
[322041419,1712713856810,-734.7,0.00025479,2]
[322041420,1712713856819,-1169.42,0.00025479,2]
[322041421,1712713856829,-1153.08,0.00025479,2]
[322041422,1712713856838,-626.23,0.00025479,2]
[322041423,1712713856847,-500.0,0.00025479,2]
[322041424,1712713856857,-2678.85,0.00025479,2]
[322041425,1712713856870,-1262.83,0.00025479,2]
[322041426,1712713856880,-876.86,0.00025479,2]
[322041427,1712713856890,-1007.79,0.00025479,2]
[322041428,1712713856899,-554.0,0.00025479,2]
[322041429,1712713856909,-740.16,0.00025479,2]
[322041430,1712713856919,-4154.44,0.00025479,2]
[322041431,1712713856928,-694.97,0.00025479,2]
[322041432,1712713856937,-2058.39,0.00025479,2]
[322041433,1712713856946,-385.58510514,0.00025479,2]
[322041434,1712713856956,-942.66,0.00025479,2]
[322041435,1712713856966,-298.78026698,0.00025479,2]
[322041436,1712713856975,-344.05727445,0.00025479,2]
[322041437,1712713856984,-500.0,0.00025479,2]
[322041438,1712713856993,-1489.96,0.00025479,2]
[322041439,1712713857002,-7963.74,0.00025479,2]
[322041440,1712713857011,-2660.44,0.00025479,2]
[322041441,1712713857020,-167.38089208,0.00025479,2]
[322041442,1712713857031,-1867.66,0.00025479,2]
[322041443,1712713857041,-2438.57,0.00025479,2]
[322041444,1712713857051,-23163.16,0.00025479,2]
[322041445,1712713857061,-4211.3,0.00025479,2]
[322041446,1712713857071,-1171.79,0.00025479,2]
[322041447,1712713857081,-895.69,0.00025479,2]
[322041448,1712713857091,-587.33,0.00025479,2]
[322041449,1712713857100,-500.0,0.00025479,2]
[322041450,1712713857112,-551.17,0.00025479,2]
[322041451,1712713857122,-727.01,0.00025479,2]
[322041452,1712713857131,-500.0,0.00025479,2]
[322041453,1712713857140,-500.0,0.00025479,2]
[322041454,1712713857151,-500.0,0.00025479,2]
[322041455,1712713857161,-500.0,0.00025479,2]
[322041456,1712713857171,-4076.7,0.00025479,2]
[322041457,1712713857180,-1346.46,0.00025479,2]
[322041458,1712713857190,-25242.55,0.00025479,2]
[322041459,1712713857200,-3946.65,0.00025479,2]
[322041460,1712713857209,-2817.03,0.00025479,2]
[322041461,1712713857219,-500.0,0.00025479,2]
[322041462,1712713857228,-5126.75,0.00025479,2]
[322041463,1712713857237,-2126.98,0.00025479,2]
[322041464,1712713857246,-495.45342285,0.00025479,2]
[322041465,1712713857255,-1412.53,0.00025479,2]
[322041466,1712713857265,-517.78,0.00025479,2]
[322041467,1712713857274,-896.71,0.00025479,2]
[322041468,1712713857283,-1779.15,0.00025479,2]
[322041469,1712713857292,-331.41050211,0.00025479,2]
[322041470,1712713857301,-3102.45,0.00025479,2]
[322041471,1712713857311,-500.0,0.00025479,2]
[322041472,1712713857320,-8740.37,0.00025479,2]
[322041473,1712713857329,-4520.79,0.00025479,2]
[322041474,1712713857338,-516.83,0.00025479,2]
[322041475,1712713857348,-1709.21,0.00025479,2]
[322041476,1712713857357,-2939.98,0.00025479,2]
[322041477,1712713857366,-8418.71,0.00025479,2]
[322041478,1712713857374,-3816.3,0.00025479,2]
[322041479,1712713857383,-2098.42177959,0.00025623,2]
[322041480,1712713857392,-954.71,0.00025753,2]
[322041481,1712713857404,-598.39,0.00025753,2]
[322041482,1712713857414,-531.22,0.00025753,2]
[322041483,1712713857424,-1511.38,0.00025753,2]
[322041484,1712713857433,-500.0,0.00025753,2]
[322041485,1712713857442,-1542.66,0.00025753,2]
[322041486,1712713857451,-736.34,0.00025753,2]
[322041487,1712713857460,-655.56,0.00025753,2]
[322041488,1712713857469,-507.82,0.00025753,2]
[322041489,1712713857479,-522.4,0.00025753,2]
[322041490,1712713857487,-500.0,0.00025753,2]
[322041491,1712713857496,-500.0,0.00025753,2]
[322041492,1712713857506,-522.9462423,0.00025753,2]
[322041493,1712713857515,-640.77,0.00025753,2]
[322041494,1712713857524,-500.0,0.00025753,2]
[322041495,1712713857532,-674.79,0.00025753,2]
[322041496,1712713857541,-917.47,0.00025753,2]
[322041497,1712713857550,-510.85,0.00025753,2]
[322041498,1712713857559,-751.55,0.00025753,2]
[322041499,1712713857568,-732.37,0.00025753,2]
[322041500,1712713857577,-2365.23,0.00025753,2]
[322041501,1712713857586,-500.0,0.00025753,2]
[322041502,1712713857596,-1178.74,0.00025753,2]
[322041503,1712713857605,-500.0,0.00025753,2]
[322041504,1712713857614,-734.7,0.00025753,2]
[322041505,1712713857623,-1169.42,0.00025753,2]
[322041506,1712713857632,-1153.08,0.00025753,2]
[322041507,1712713857641,-626.23,0.00025753,2]
[322041508,1712713857650,-239.62143975,0.00025753,2]
[322041509,1712713857660,-2678.85,0.00025753,2]
[322041510,1712713857669,-1262.83,0.00025753,2]
[322041511,1712713857679,-876.86,0.00025753,2]
[322041512,1712713857688,-1007.79,0.00025753,2]
[322041513,1712713857697,-554.0,0.00025753,2]
[322041514,1712713857706,-740.16,0.00025753,2]
[322041515,1712713857716,-4154.44,0.00025753,2]
[322041516,1712713857725,-694.97,0.00025753,2]
[322041517,1712713857735,-2058.39,0.00025753,2]
[322041518,1712713857744,-942.66,0.00025753,2]
[322041519,1712713857827,-500.0,0.00025753,2]
[322041520,1712713857836,-1489.96,0.00025753,2]
[322041521,1712713857846,-7963.74,0.00025753,2]
[322041522,1712713857855,-2660.44,0.00025753,2]
[322041523,1712713857866,-1867.66,0.00025753,2]
[322041524,1712713857877,-2438.57,0.00025753,2]
[322041525,1712713857886,-23163.16,0.00025753,2]
[322041526,1712713857895,-4211.3,0.00025753,2]
[322041527,1712713857904,-1171.79,0.00025753,2]
[322041528,1712713857914,-895.69,0.00025753,2]
[322041529,1712713857923,-587.33,0.00025753,2]
[322041530,1712713857932,-500.0,0.00025753,2]
[322041531,1712713857941,-551.17,0.00025753,2]
[322041532,1712713857950,-727.01,0.00025753,2]
[322041533,1712713857959,-500.0,0.00025753,2]
[322041534,1712713857969,-500.0,0.00025753,2]
[322041535,1712713857978,-500.0,0.00025753,2]
[322041536,1712713857987,-500.0,0.00025753,2]
[322041537,1712713857996,-4076.7,0.00025753,2]
[322041538,1712713858005,-1346.46,0.00025753,2]
[322041539,1712713858014,-25242.55,0.00025753,2]
[322041540,1712713858023,-3946.65,0.00025753,2]
[322041541,1712713858033,-2817.03,0.00025753,2]
[322041542,1712713858042,-500.0,0.00025753,2]
[322041543,1712713858051,-5126.75,0.00025753,2]
[322041544,1712713858060,-2126.98,0.00025753,2]
[322041545,1712713858069,-1412.53,0.00025753,2]
[322041546,1712713858079,-517.78,0.00025753,2]
[322041547,1712713858088,-896.71,0.00025753,2]
[322041548,1712713858097,-1779.15,0.00025753,2]
[322041549,1712713858106,-3102.45,0.00025753,2]
[322041550,1712713858115,-500.0,0.00025753,2]
[322041551,1712713858125,-8740.37,0.00025753,2]
[322041552,1712713858134,-4520.79,0.00025753,2]
[322041553,1712713858143,-516.83,0.00025753,2]
[322041554,1712713858154,-1709.21,0.00025753,2]
[322041555,1712713858163,-2939.98,0.00025753,2]
[322041556,1712713858173,-8418.71,0.00025753,2]
[322041557,1712713858182,-3816.3,0.00025753,2]
[322041558,1712713858191,-10000.0,0.00025772,2]
[322041559,1712713858200,-587.0,0.00025867,2]
[322041560,1712713858209,-6000.0,0.000259,2]
[322041561,1712713858218,-3986.25419662,0.00026,3]
[322041562,1712713858227,-478.0,0.00026,2]
[322041563,1712713858236,-954.71,0.00026027,2]
[322041564,1712713858245,-598.39,0.00026027,2]
[322041565,1712713858254,-531.22,0.00026027,2]
[322041566,1712713858263,-1511.38,0.00026027,2]
[322041567,1712713858273,-500.0,0.00026027,2]
[322041568,1712713858282,-1542.66,0.00026027,2]
[322041569,1712713858291,-736.34,0.00026027,2]
[322041570,1712713858300,-655.56,0.00026027,2]
[322041571,1712713858309,-507.82,0.00026027,2]
[322041572,1712713858318,-522.4,0.00026027,2]
[322041573,1712713858327,-346.65338299,0.00026027,2]
[322041574,1712713858336,-500.0,0.00026027,2]
[322041575,1712713858345,-640.77,0.00026027,2]
[322041576,1712713858355,-500.0,0.00026027,2]
[322041577,1712713858364,-674.79,0.00026027,2]
[322041578,1712713858373,-917.47,0.00026027,2]
[322041579,1712713858382,-510.85,0.00026027,2]
[322041580,1712713858391,-751.55,0.00026027,2]
[322041581,1712713858402,-732.37,0.00026027,2]
[322041582,1712713858412,-2365.23,0.00026027,2]
[322041583,1712713858423,-500.0,0.00026027,2]
[322041584,1712713858432,-1178.74,0.00026027,2]
[322041585,1712713858440,-500.0,0.00026027,2]
[322041586,1712713858450,-734.7,0.00026027,2]
[322041587,1712713858459,-1169.42,0.00026027,2]
[322041588,1712713858468,-1153.08,0.00026027,2]
[322041589,1712713858477,-626.23,0.00026027,2]
[322041590,1712713858487,-2678.85,0.00026027,2]
[322041591,1712713858496,-1262.83,0.00026027,2]
[322041592,1712713858505,-876.86,0.00026027,2]
[322041593,1712713858514,-1007.79,0.00026027,2]
[322041594,1712713858523,-554.0,0.00026027,2]
[322041595,1712713858532,-740.16,0.00026027,2]
[322041596,1712713858541,-4154.44,0.00026027,2]
[322041597,1712713858549,-694.97,0.00026027,2]
[322041598,1712713858558,-2058.39,0.00026027,2]
[322041599,1712713858567,-942.66,0.00026027,2]
[322041600,1712713858576,-500.0,0.00026027,2]
[322041601,1712713858586,-1489.96,0.00026027,2]
[322041602,1712713858596,-7963.74,0.00026027,2]
[322041603,1712713858606,-2660.44,0.00026027,2]
[322041604,1712713858616,-1867.66,0.00026027,2]
[322041605,1712713858625,-2438.57,0.00026027,2]
[322041606,1712713858635,-23163.16,0.00026027,2]
[322041607,1712713858645,-4211.3,0.00026027,2]
[322041608,1712713858654,-895.69,0.00026027,2]
[322041609,1712713858663,-587.33,0.00026027,2]
[322041610,1712713858676,-1171.79,0.00026027,2]
[322041611,1712713858685,-500.0,0.00026027,2]
[322041612,1712713858694,-551.17,0.00026027,2]
[322041613,1712713858703,-727.01,0.00026027,2]
[322041614,1712713858712,-500.0,0.00026027,2]
[322041615,1712713858722,-500.0,0.00026027,2]
[322041616,1712713858731,-252.35997221,0.00026027,2]
[322041617,1712713858741,-500.0,0.00026027,2]
[322041618,1712713858750,-4076.7,0.00026027,2]
[322041619,1712713858759,-1346.46,0.00026027,2]
[322041620,1712713858767,-25242.55,0.00026027,2]
[322041621,1712713858776,-3946.65,0.00026027,2]
[322041622,1712713858785,-2817.03,0.00026027,2]
[322041623,1712713858794,-500.0,0.00026027,2]
[322041624,1712713858804,-5126.75,0.00026027,2]
[322041625,1712713858813,-2126.98,0.00026027,2]
[322041626,1712713858822,-1412.53,0.00026027,2]
[322041627,1712713858832,-517.78,0.00026027,2]
[322041628,1712713858842,-896.71,0.00026027,2]
[322041629,1712713858852,-1779.15,0.00026027,2]
[322041630,1712713858862,-3102.45,0.00026027,2]
[322041631,1712713858872,-500.0,0.00026027,2]
[322041632,1712713858881,-8740.37,0.00026027,2]
[322041633,1712713858891,-4520.79,0.00026027,2]
[322041634,1712713858900,-516.83,0.00026027,2]
[322041635,1712713858910,-1709.21,0.00026027,2]
[322041636,1712713858920,-2939.98,0.00026027,2]
[322041637,1712713858929,-8418.71,0.00026027,2]
[322041638,1712713858938,-3816.3,0.00026027,2]
[322041639,1712713858948,-760.69647208,0.000261,2]
[322041640,1712713858957,-2299.48974125,0.000261,4]
[322041641,1712713858966,-153.0,0.00026153,2]
[322041642,1712713858975,-300.0,0.000262,12]
[322041643,1712713858985,-1828.4261,0.000263,2]
[322041644,1712713858994,-954.71,0.00026301,2]
[322041645,1712713859003,-598.39,0.00026301,2]
[322041646,1712713859011,-531.22,0.00026301,2]
[322041647,1712713859020,-1511.38,0.00026301,2]
[322041648,1712713859030,-500.0,0.00026301,2]
[322041649,1712713859039,-1542.66,0.00026301,2]
[322041650,1712713859048,-736.34,0.00026301,2]
[322041651,1712713859057,-655.56,0.00026301,2]
[322041652,1712713859066,-507.82,0.00026301,2]
[322041653,1712713859075,-522.4,0.00026301,2]
[322041654,1712713859084,-500.0,0.00026301,2]
[322041655,1712713859093,-640.77,0.00026301,2]
[322041656,1712713859102,-500.0,0.00026301,2]
[322041657,1712713859111,-674.79,0.00026301,2]
[322041658,1712713859120,-917.47,0.00026301,2]
[322041659,1712713859130,-510.85,0.00026301,2]
[322041660,1712713859139,-751.55,0.00026301,2]
[322041661,1712713859148,-732.37,0.00026301,2]
[322041662,1712713859157,-500.0,0.00026301,2]
[322041663,1712713859166,-2365.23,0.00026301,2]
[322041664,1712713859177,-1178.74,0.00026301,2]
[322041665,1712713859186,-515.06571743,0.00026301,2]
[322041666,1712713859195,-734.7,0.00026301,2]
[322041667,1712713859206,-1169.42,0.00026301,2]
[322041668,1712713859215,-1153.08,0.00026301,2]
[322041669,1712713859224,-626.23,0.00026301,2]
[322041670,1712713859234,-2678.85,0.00026301,2]
[322041671,1712713859316,-1262.83,0.00026301,2]
[322041672,1712713859326,-876.86,0.00026301,2]
[322041673,1712713859335,-1007.79,0.00026301,2]
[322041674,1712713859344,-554.0,0.00026301,2]
[322041675,1712713859354,-740.16,0.00026301,2]
[322041676,1712713859363,-4154.44,0.00026301,2]
[322041677,1712713859372,-694.97,0.00026301,2]
[322041678,1712713859382,-2058.39,0.00026301,2]
[322041679,1712713859393,-942.66,0.00026301,2]
[322041680,1712713859404,-500.0,0.00026301,2]
[322041681,1712713859414,-1489.96,0.00026301,2]
[322041682,1712713859424,-7963.74,0.00026301,2]
[322041683,1712713859434,-2660.44,0.00026301,2]
[322041684,1712713859444,-1867.66,0.00026301,2]
[322041685,1712713859453,-2438.57,0.00026301,2]
[322041686,1712713859462,-23163.16,0.00026301,2]
[322041687,1712713859471,-4211.3,0.00026301,2]
[322041688,1712713859481,-587.33,0.00026301,2]
[322041689,1712713859491,-895.69,0.00026301,2]
[322041690,1712713859499,-1171.79,0.00026301,2]
[322041691,1712713859508,-378.30679061,0.00026301,2]
[322041692,1712713859517,-551.17,0.00026301,2]
[322041693,1712713859526,-727.01,0.00026301,2]
[322041694,1712713859535,-500.0,0.00026301,2]
[322041695,1712713859544,-500.0,0.00026301,2]
[322041696,1712713859553,-500.0,0.00026301,2]
[322041697,1712713859562,-4076.7,0.00026301,2]
[322041698,1712713859571,-1346.46,0.00026301,2]
[322041699,1712713859581,-25242.55,0.00026301,2]
[322041700,1712713859590,-3946.65,0.00026301,2]
[322041701,1712713859599,-2817.03,0.00026301,2]
[322041702,1712713859608,-500.0,0.00026301,2]
[322041703,1712713859617,-5126.75,0.00026301,2]
[322041704,1712713859626,-2126.98,0.00026301,2]
[322041705,1712713859636,-1412.53,0.00026301,2]
[322041706,1712713859645,-517.78,0.00026301,2]
[322041707,1712713859654,-896.71,0.00026301,2]
[322041708,1712713859663,-1779.15,0.00026301,2]
[322041709,1712713859675,-3102.45,0.00026301,2]
[322041710,1712713859684,-500.0,0.00026301,2]
[322041711,1712713859694,-8740.37,0.00026301,2]
[322041712,1712713859703,-4520.79,0.00026301,2]
[322041713,1712713859712,-516.83,0.00026301,2]
[322041714,1712713859722,-1709.21,0.00026301,2]
[322041715,1712713859731,-2939.98,0.00026301,2]
[322041716,1712713859740,-8418.71,0.00026301,2]
[322041717,1712713859747,-3816.3,0.00026301,2]
[322041718,1712713859756,-160.0,0.0002634,3]
[322041719,1712713859765,-160.0,0.00026414,4]
[322041720,1712713859774,-160.0,0.00026489,5]
[322041721,1712713859784,-160.0,0.00026563,6]
[322041722,1712713859793,-954.71,0.00026575,2]
[322041723,1712713859803,-598.39,0.00026575,2]
[322041724,1712713859812,-531.22,0.00026575,2]
[322041725,1712713859822,-1511.38,0.00026575,2]
[322041726,1712713859831,-500.0,0.00026575,2]
[322041727,1712713859841,-1542.66,0.00026575,2]
[322041728,1712713859850,-736.34,0.00026575,2]
[322041729,1712713859859,-655.56,0.00026575,2]
[322041730,1712713859869,-507.82,0.00026575,2]
[322041731,1712713859879,-522.4,0.00026575,2]
[322041732,1712713859888,-393.18701053,0.00026575,2]
[322041733,1712713859897,-640.77,0.00026575,2]
[322041734,1712713859906,-500.0,0.00026575,2]
[322041735,1712713859916,-674.79,0.00026575,2]
[322041736,1712713859928,-917.47,0.00026575,2]
[322041737,1712713859937,-510.85,0.00026575,2]
[322041738,1712713859946,-751.55,0.00026575,2]
[322041739,1712713859955,-732.37,0.00026575,2]
[322041740,1712713859964,-2365.23,0.00026575,2]
[322041741,1712713859974,-500.0,0.00026575,2]
[322041742,1712713859983,-1178.74,0.00026575,2]
[322041743,1712713859993,-734.7,0.00026575,2]
[322041744,1712713860002,-1169.42,0.00026575,2]
[322041745,1712713860011,-1153.08,0.00026575,2]
[322041746,1712713860022,-626.23,0.00026575,2]
[322041747,1712713860031,-2678.85,0.00026575,2]
[322041748,1712713860040,-1262.83,0.00026575,2]
[322041749,1712713860050,-876.86,0.00026575,2]
[322041750,1712713860059,-1007.79,0.00026575,2]
[322041751,1712713860069,-554.0,0.00026575,2]
[322041752,1712713860078,-740.16,0.00026575,2]
[322041753,1712713860089,-4154.44,0.00026575,2]
[322041754,1712713860098,-694.97,0.00026575,2]
[322041755,1712713860107,-2058.39,0.00026575,2]
[322041756,1712713860116,-942.66,0.00026575,2]
[322041757,1712713860127,-503.03166221,0.00026575,2]
[322041758,1712713860136,-1489.96,0.00026575,2]
[322041759,1712713860146,-7963.74,0.00026575,2]
[322041760,1712713860156,-2660.44,0.00026575,2]
[322041761,1712713860165,-1867.66,0.00026575,2]
[322041762,1712713860176,-2438.57,0.00026575,2]
[322041763,1712713860185,-7496.41448,0.00026575,2]
[322041764,1712713860348,-15666.74552,0.00026575,2]
[322041765,1712713860358,-4211.3,0.00026575,2]
[322041766,1712713860367,-587.33,0.00026575,2]
[322041767,1712713860376,-895.69,0.00026575,2]
[322041768,1712713860386,-1171.79,0.00026575,2]
[322041769,1712713860395,-551.17,0.00026575,2]
[322041770,1712713860406,-727.01,0.00026575,2]
[322041771,1712713860415,-500.0,0.00026575,2]
[322041772,1712713860426,-500.0,0.00026575,2]
[322041773,1712713860435,-500.0,0.00026575,2]
[322041774,1712713860445,-875.61881916,0.00026575,2]
[322041775,1712713860456,-3201.08118084,0.00026575,2]
[322041776,1712713860466,-1346.46,0.00026575,2]
[322041777,1712713860475,-25242.55,0.00026575,2]
[322041778,1712713860485,-3946.65,0.00026575,2]
[322041779,1712713860494,-2817.03,0.00026575,2]
[322041780,1712713860503,-500.0,0.00026575,2]
[322041781,1712713860512,-5126.75,0.00026575,2]
[322041782,1712713860521,-2126.98,0.00026575,2]
[322041783,1712713860532,-1412.53,0.00026575,2]
[322041784,1712713860541,-517.78,0.00026575,2]
[322041785,1712713860550,-896.71,0.00026575,2]
[322041786,1712713860559,-560.66723063,0.00026575,2]
[322041787,1712713860644,-1218.48276937,0.00026575,2]
[322041788,1712713860653,-161.14849389,0.00026575,2]
[322041789,1712713860668,-1532.84180828,0.00026575,2]
[322041797,1712714033126,235.80651772,0.00021,2]
[322041798,1712714033362,9805.85014695,0.0002,2]
[322041801,1712714067861,1163.88769173,0.000176,2]
[322041805,1712714080437,1676.30109709,0.0002,2]
[322041808,1712714342681,172.733075,0.00020599,2]
[322041810,1712714379126,306.25358249,0.00020599,2]
[322041811,1712714382532,541.248771,0.00020858,2]
[322041812,1712714393130,306.25358249,0.00020599,2]
[322041813,1712714413130,306.25358249,0.00020599,2]